bitfinex/quotes_ETHUSD_20250526
["timestamp","ask_amount","ask_price","bid_price","bid_amount"]
[1748236571734,0.36422876,2559.1,2558.9,7.954]
[1748236572393,3.01728322,2559.2,2559.0,7.955]
[1748236573131,3.01728322,2559.2,2559.0,4.055]
[1748236573340,3.01728322,2559.2,2559.1,3.9]
[1748236573814,3.3814668,2559.2,2559.1,3.9]
[1748236577842,0.36418358,2559.2,2559.1,3.9]
[1748236581956,0.36418358,2559.2,2559.0,4.055]
[1748236582250,0.36418358,2559.2,2559.1,3.901]
[1748236584849,0.8139,2559.1,2558.8,3.0]
[1748236585049,0.8139,2559.1,2558.9,4.055]
[1748236585262,11.01728322,2559.0,2558.9,4.055]
[1748236585472,11.01728322,2559.0,2558.9,7.956]
[1748236585761,11.3814668,2559.0,2558.9,7.956]
[1748236585947,12.71481815,2559.0,2558.9,7.956]
[1748236589366,8.36418358,2559.0,2558.9,7.956]
[1748236589572,0.36418358,2559.0,2558.9,7.956]
[1748236590066,0.36418358,2559.1,2558.9,7.956]
[1748236590427,0.36418358,2559.1,2559.0,0.8087]
[1748236590931,0.36418358,2559.3,2559.0,0.8087]
[1748236591244,0.36418358,2559.3,2559.1,3.901]
[1748236592143,0.36418358,2559.2,2559.1,3.901]
[1748236592949,11.01728322,2559.4,2559.1,3.901]
[1748236593156,0.36420756,2559.2,2559.1,3.901]
[1748236595875,11.01728322,2559.4,2559.1,3.901]
[1748236597095,0.36426545,2559.3,2559.1,3.901]
[1748236598005,11.01728322,2559.4,2559.1,3.901]
[1748236599889,0.36437002,2559.3,2559.1,3.901]
[1748236601074,11.01728322,2559.4,2559.1,3.901]
[1748236601969,3.01728322,2559.2,2559.1,3.901]
[1748236604280,0.8234,2559.6,2559.1,3.901]
[1748236604612,3.01728322,2559.3,2559.1,3.901]
[1748236605799,3.01728322,2559.3,2559.2,4.054]
[1748236606738,3.38159957,2559.3,2559.2,4.054]
[1748236607680,3.38159957,2559.3,2559.2,7.955]
[1748236617899,0.36431635,2559.3,2559.2,7.955]
[1748236618321,0.36431635,2559.3,2559.2,4.8049]
[1748236618635,3.01728322,2559.5,2559.2,8.7059]
[1748236619656,0.36479304,2559.4,2559.2,8.7059]
[1748236620640,3.01728322,2559.3,2559.2,8.7059]
[1748236620817,3.38207626,2559.3,2559.2,7.955]
[1748236622440,3.38207626,2559.3,2559.0,0.7652]
[1748236622605,3.38207626,2559.3,2559.1,7.953]
[1748236623355,0.36479304,2559.2,2559.1,7.953]
[1748236624835,0.36479304,2559.2,2559.1,7.952]
[1748236627520,0.36479304,2559.2,2558.8,0.7945]
[1748236627720,0.36479304,2559.2,2558.9,7.952]
[1748236628891,3.01728322,2559.3,2558.9,7.952]
[1748236629871,3.01728322,2559.3,2559.0,3.9]
[1748236630880,8.36461703,2559.2,2559.0,3.9]
[1748236631683,8.0,2559.2,2559.0,3.9]
[1748236634167,8.0,2559.5,2559.1,0.7621]
[1748236634537,8.0,2559.5,2559.2,4.052]
[1748236634732,8.0,2559.5,2559.3,3.9]
[1748236634933,0.36460579,2559.4,2559.3,3.9]
[1748236637371,0.36460579,2559.4,2559.3,3.93907147]
[1748236637546,0.36460579,2559.4,2559.3,4.697]
[1748236638137,0.39420276,2559.8,2559.3,4.697]
[1748236638337,3.01728322,2559.9,2559.3,4.697]
[1748236639178,0.36447723,2559.8,2559.3,4.697]
[1748236640181,0.36447723,2559.7,2559.3,4.697]
[1748236641182,3.01728322,2559.7,2559.3,4.697]
[1748236643087,3.01728322,2559.5,2559.3,0.797]
[1748236643289,0.36410527,2559.7,2559.4,7.952]
[1748236643653,3.01728322,2559.6,2559.4,7.952]
[1748236649202,3.01728322,2559.6,2559.5,7.952]
[1748236654711,2.51728322,2559.6,2559.5,7.952]
[1748236656596,2.51728322,2559.6,2559.5,7.95]
[1748236656984,2.88122427,2559.6,2559.5,7.95]
[1748236663619,2.88122427,2559.6,2559.3,0.797]
[1748236663810,2.88122427,2559.6,2559.4,4.05]
[1748236664007,2.26307248,2559.5,2559.4,7.95]
[1748236664625,2.62701353,2559.5,2559.4,7.95]
[1748236669194,10.62701353,2559.5,2559.4,7.95]
[1748236670496,2.62701353,2559.5,2559.4,7.95]
[1748236671309,10.62701353,2559.5,2558.9,0.764]
[1748236671528,2.26307248,2559.0,2558.9,0.764]
[1748236671733,2.26307248,2559.0,2558.9,8.714]
[1748236671935,3.01837619,2559.3,2558.9,8.714]
[1748236672300,0.36394105,2559.2,2558.9,8.714]
[1748236672611,8.36394105,2559.2,2558.9,8.714]
[1748236672801,3.01837619,2559.1,2559.0,7.95]
[1748236674121,8.0,2559.2,2559.0,7.95]
[1748236676835,3.01837619,2559.3,2559.0,7.95]
[1748236677140,0.36422212,2559.2,2559.0,7.95]
[1748236678036,3.01837619,2559.3,2559.0,7.95]
[1748236679303,3.01837619,2559.5,2559.0,7.95]
[1748236679502,8.0,2559.6,2559.1,0.7985]
[1748236680636,0.36403676,2559.5,2559.1,0.7985]
[1748236681201,8.0,2559.6,2559.1,0.7985]
[1748236682540,8.0,2559.6,2559.2,4.05]
[1748236682700,8.0,2559.6,2559.3,3.9]
[1748236686636,0.3641414,2559.5,2559.3,3.9]
[1748236686857,11.38251759,2559.5,2559.4,3.9]
[1748236687454,11.38251759,2559.5,2559.4,7.948]
[1748236689809,3.38251759,2559.5,2559.4,7.948]
[1748236690246,0.3641414,2559.5,2559.4,7.948]
[1748236692843,8.0,2559.6,2559.4,7.948]
[1748236695261,0.36400995,2559.5,2559.4,7.948]
[1748236696155,3.01837619,2559.7,2559.4,7.948]
[1748236696362,3.39996775,2559.8,2559.4,7.948]
[1748236696565,1.23029325,2560.2,2559.5,0.03906839]
[1748236696870,1.23029325,2560.2,2559.4,8.752]
[1748236696871,8.7632,2560.2,2559.6,4.704]
[1748236697061,8.0,2560.0,2559.6,4.704]
[1748236697280,3.38242958,2560.1,2559.6,4.704]
[1748236697753,8.0,2560.0,2559.6,4.704]
[1748236697915,8.38215442,2560.0,2559.6,4.704]
[1748236698330,8.38215442,2560.0,2559.6,1.44377888]
[1748236698672,3.01837619,2559.9,2559.7,7.948]
[1748236699732,3.01837619,2559.9,2559.4,0.7572]
[1748236700080,3.01837619,2559.9,2559.5,7.948]
[1748236701466,0.38939011,2560.0,2559.6,0.8256]
[1748236701657,3.01837619,2560.2,2559.6,0.8256]
[1748236702582,0.36360563,2560.1,2559.6,0.8256]
[1748236702880,0.7531517,2560.1,2559.6,0.8256]
[1748236703179,3.01837619,2560.2,2559.6,0.8256]
[1748236705689,0.36373385,2560.1,2559.6,0.8256]
[1748236706587,3.01837619,2560.2,2559.6,0.8256]
[1748236706781,3.41417645,2560.2,2559.6,0.8256]
[1748236707160,8.0,2560.1,2559.6,0.8256]
[1748236713386,0.7575,2560.7,2559.8,0.7681]
[1748236713588,0.39455267,2560.7,2560.0,0.7681]
[1748236713755,0.46709325,2560.8,2560.0,0.7681]
[1748236714106,0.3638908,2560.6,2560.0,0.7681]
[1748236715092,0.3638908,2560.7,2560.0,0.7681]
[1748236716690,3.41472228,2560.8,2560.0,0.7681]
[1748236718093,0.36336214,2560.7,2560.0,0.7681]
[1748236719198,3.41472228,2560.8,2560.0,0.7681]
[1748236720706,3.01837619,2560.6,2560.1,7.944]
[1748236721207,2.96837619,2560.6,2560.1,7.944]
[1748236723113,2.96837619,2560.6,2560.2,0.7955]
[1748236725717,3.78070802,2560.8,2560.2,0.7955]
[1748236725954,0.36352763,2560.8,2560.4,0.8084]
[1748236726159,0.1,2560.9,2560.1,8.494]
[1748236726303,0.1,2560.9,2560.4,0.8084]
[1748236727004,0.1,2560.9,2560.5,7.943]
[1748236727435,0.1,2560.9,2560.6,0.7521]
[1748236730104,0.49758044,2560.9,2560.6,0.7521]
[1748236730429,0.1,2560.9,2560.7,3.898]
[1748236731930,3.11837619,2560.9,2560.8,7.942]
[1748236732298,0.1,2560.9,2560.8,7.942]
[1748236734336,0.48709626,2560.9,2560.8,7.942]
[1748236734497,0.1,2560.9,2560.8,7.942]
[1748236735997,0.1,2560.9,2560.8,8.7345]
[1748236744622,0.1,2560.9,2560.8,9.2845]
[1748236746773,0.1,2560.9,2560.8,23.94370226]
[1748236746919,0.22093201,2561.4,2561.1,0.55]
[1748236747120,0.22093201,2561.4,2561.3,1.3471]
[1748236747920,0.22093201,2561.4,2561.3,9.3471]
[1748236749360,0.22093201,2561.4,2561.3,9.85630226]
[1748236753772,0.22093201,2561.4,2561.3,17.2841]
[1748236754598,0.22093201,2561.4,2561.3,9.3471]
[1748236754880,0.22093201,2561.4,2561.3,17.2841]
[1748236756981,0.22093201,2561.4,2561.3,9.3471]
[1748236757284,0.22093201,2561.4,2561.3,17.2831]
[1748236758984,0.29060351,2561.6,2561.3,23.4419]
[1748236759157,0.06892757,2561.8,2561.7,0.55]
[1748236759364,0.09920001,2561.9,2561.7,7.65534833]
[1748236759559,0.42914653,2562.0,2561.9,1.3559]
[1748236759758,0.42914653,2562.0,2561.9,8.01510226]
[1748236759965,0.49961803,2562.1,2562.0,1.83200226]
[1748236760259,0.49961803,2562.1,2562.0,20.43800226]
[1748236760460,0.3278701,2562.5,2562.2,0.55]
[1748236760676,0.3278701,2562.5,2562.0,19.11520226]
[1748236760677,0.3278701,2562.5,2562.4,1.3228]
[1748236762356,0.3278701,2562.5,2562.4,1.83200226]
[1748236763188,0.3278701,2562.5,2562.4,9.83200226]
[1748236764096,0.3278701,2562.5,2562.4,15.98200226]
[1748236764652,0.3278701,2562.5,2562.4,23.4068]
[1748236769212,0.3278701,2562.5,2562.4,15.4058]
[1748236771111,0.3278701,2562.5,2562.4,14.632]
[1748236771804,0.3278701,2562.5,2562.4,7.932]
[1748236772211,0.3278701,2562.5,2562.4,8.482]
[1748236772920,0.3278701,2562.5,2562.4,0.55]
[1748236773071,0.3278701,2562.5,2562.4,7.932]
[1748236773276,1.1066701,2562.5,2562.4,7.932]
[1748236777985,0.3278701,2562.5,2562.0,8.416]
[1748236778193,0.7729,2562.4,2562.1,7.932]
[1748236780736,0.7729,2562.4,2562.2,0.55]
[1748236780965,0.3278701,2562.5,2562.2,0.55]
[1748236782323,0.3278701,2562.5,2562.3,7.933]
[1748236786759,0.3278701,2562.5,2562.4,7.933]
[1748236787732,0.3278701,2562.5,2562.4,4.038]
[1748236787937,0.3278701,2562.5,2562.4,7.933]
[1748236789578,1.1032701,2562.5,2562.0,8.416]
[1748236789860,1.1032701,2562.5,2562.1,7.933]
[1748236790732,1.1032701,2562.5,2562.0,8.416]
[1748236790938,1.1032701,2562.5,2562.2,7.933]
[1748236793161,0.3278701,2562.5,2562.0,8.416]
[1748236793336,0.7614,2562.4,2562.1,7.933]
[1748236795165,0.7614,2562.4,2562.0,8.416]
[1748236795371,0.7614,2562.4,2562.1,7.933]
[1748236795544,0.7614,2562.4,2562.1,4.038]
[1748236795865,0.7614,2562.4,2562.2,3.895]
[1748236801657,0.7614,2562.4,2562.1,4.038]
[1748236801865,0.8145,2562.1,2562.0,8.416]
[1748236802032,11.83287619,2562.1,2562.0,12.311]
[1748236802971,12.1968637,2562.1,2562.0,12.311]
[1748236803499,0.8145,2561.9,2561.5,4.039]
[1748236803775,11.83287619,2561.6,2561.5,7.935]
[1748236804967,12.1968637,2561.6,2561.5,7.935]
[1748236806783,11.83287619,2561.6,2561.5,7.935]
[1748236809260,8.8145,2561.6,2561.5,7.935]
[1748236809464,8.0,2561.6,2561.5,7.935]
[1748236810487,0.768,2562.0,2561.5,7.935]
[1748236810786,3.78637619,2562.0,2561.5,7.935]
[1748236811087,8.0,2561.7,2561.3,0.7734]
[1748236811293,8.0,2561.7,2561.6,4.047]
[1748236811594,8.0,2561.7,2561.6,7.943]
[1748236813091,8.8274,2561.7,2561.6,4.047]
[1748236813298,8.8274,2561.7,2561.6,7.943]
[1748236814167,8.8274,2561.7,2561.6,4.047]
[1748236814168,10.01197762,2561.7,2561.6,4.047]
[1748236814369,10.01197762,2561.7,2561.6,7.943]
[1748236814689,0.8047,2561.9,2561.6,7.943]
[1748236816462,0.8146,2562.1,2561.6,7.943]
[1748236818597,3.83297619,2562.1,2561.6,7.943]
[1748236818801,8.0,2562.0,2561.6,7.943]
[1748236823794,8.0,2562.0,2561.7,0.8186]
[1748236823997,0.3278701,2562.5,2561.8,3.896]
[1748236824603,8.3278701,2562.5,2561.8,3.896]
[1748236825299,8.69117181,2562.5,2561.8,3.896]
[1748236826404,8.69117181,2562.5,2561.9,0.8055]
[1748236828489,8.3278701,2562.5,2561.9,0.8055]
[1748236833510,0.3278701,2562.5,2561.9,0.8055]
[1748236836222,0.3278701,2562.5,2562.0,0.55]
[1748236836514,0.3278701,2562.5,2562.1,0.8159]
[1748236836719,0.3278701,2562.5,2562.3,0.8159]
[1748236836923,0.3278701,2562.5,2562.4,4.047]
[1748236846702,0.3278701,2562.5,2562.4,4.8277]
[1748236848007,0.3278701,2562.5,2562.4,5.3777]
[1748236853650,0.3278701,2562.5,2562.4,9.2707]
[1748236853812,0.3278701,2562.5,2562.4,8.7207]
[1748236854144,0.3278701,2562.5,2562.4,9.2707]
[1748236854350,0.3278701,2562.5,2562.4,8.7207]
[1748236860482,0.3278701,2562.5,2562.0,0.7779]
[1748236860639,0.3278701,2562.5,2562.4,4.045]
[1748236860834,0.3278701,2562.5,2562.4,7.94]
[1748236861853,0.3278701,2562.5,2562.4,4.045]
[1748236862058,0.3278701,2562.5,2562.4,7.94]
[1748236863693,0.3278701,2562.5,2561.9,0.55]
[1748236863897,0.3278701,2562.5,2562.4,4.045]
[1748236864045,0.3278701,2562.5,2562.4,7.94]
[1748236865789,0.3278701,2562.5,2562.4,8.49]
[1748236867895,0.3278701,2562.5,2562.3,0.7782]
[1748236868062,0.3278701,2562.5,2562.4,7.94]
[1748236870476,0.3278701,2562.5,2562.1,1.3554]
[1748236870668,0.3278701,2562.5,2562.4,7.934]
[1748236873795,0.3278701,2562.5,2562.4,4.039]
[1748236874008,0.3278701,2562.5,2562.4,7.934]
[1748236874176,1.1273701,2562.5,2562.4,4.039]
[1748236874371,1.1273701,2562.5,2562.4,7.934]
[1748236874897,1.1273701,2562.5,2561.7,1.40253688]
[1748236875065,1.61280798,2562.5,2561.8,7.934]
[1748236875264,0.36434088,2562.4,2561.8,7.934]
[1748236875998,0.7919,2562.3,2561.7,0.62373688]
[1748236876216,0.7919,2562.3,2561.5,2.77636452]
[1748236876365,0.7501,2562.1,2561.8,4.039]
[1748236876559,1.92694762,2562.1,2561.8,4.039]
[1748236879095,1.92694762,2562.1,2561.9,3.895]
[1748236879887,1.92694762,2562.1,2561.8,4.039]
[1748236880067,0.8307,2562.0,2561.9,3.895]
[1748236880270,8.8307,2562.0,2561.1,2.78826452]
[1748236880509,8.8307,2562.0,2561.9,7.935]
[1748236880682,10.16965772,2562.0,2561.9,7.935]
[1748236881699,10.16965772,2562.0,2561.9,7.936]
[1748236885604,10.16965772,2562.0,2561.9,4.04]
[1748236885806,10.16965772,2562.0,2561.9,7.936]
[1748236886925,12.51065772,2562.0,2561.9,7.936]
[1748236887211,10.16965772,2562.0,2561.9,7.936]
[1748236887611,0.8307,2562.0,2561.9,7.936]
[1748236892014,11.84907619,2562.0,2561.9,4.04]
[1748236892213,12.21218666,2562.0,2561.9,7.936]
[1748236909865,12.21218666,2562.0,2561.9,7.937]
[1748236914744,9.19381047,2562.0,2561.9,7.937]
[1748236917157,10.41502914,2562.0,2561.9,7.937]
[1748236920967,9.58432914,2562.0,2561.9,7.937]
[1748236923472,8.0,2561.9,2561.4,0.8178]
[1748236923652,8.0,2561.9,2561.5,4.042]
[1748236923828,8.0,2561.9,2560.9,0.62373688]
[1748236923829,8.7919,2561.5,2560.9,1.40393688]
[1748236924031,8.0,2561.1,2560.9,0.62373688]
[1748236924240,8.0,2561.1,2561.0,7.939]
[1748236924626,8.36311047,2561.1,2561.0,7.939]
[1748236926049,8.36311047,2561.1,2561.0,3.897]
[1748236926249,8.75069739,2561.1,2561.0,3.897]
[1748236926552,10.00325475,2561.1,2561.0,3.897]
[1748236928684,10.00325475,2561.1,2560.8,8.417]
[1748236928852,3.01837619,2561.0,2560.9,3.897]
[1748236929189,3.38148666,2561.0,2560.9,3.897]
[1748236929534,8.0,2560.9,2560.8,12.459]
[1748236929751,8.0,2560.9,2560.8,16.356]
[1748236930456,0.36311047,2560.9,2560.8,16.356]
[1748236931033,0.36311047,2561.0,2560.8,16.356]
[1748236931360,8.36311047,2561.0,2560.8,16.356]
[1748236931728,8.36311047,2561.0,2560.8,12.459]
[1748236931729,9.57690914,2561.0,2560.8,12.459]
[1748236931928,11.01837619,2560.9,2560.8,12.459]
[1748236932169,11.38148666,2560.9,2560.8,16.356]
[1748236933134,8.36311047,2560.9,2560.8,17.1073]
[1748236933339,0.36311047,2560.9,2560.8,17.1073]
[1748236934035,0.38105334,2561.2,2560.8,17.1073]
[1748236934230,8.36311047,2561.5,2560.8,17.1073]
[1748236934588,0.36311047,2561.5,2560.9,0.832]
[1748236934734,0.36311047,2561.5,2561.1,0.822]
[1748236934934,0.36311047,2561.5,2561.2,3.898]
[1748236935234,0.36311047,2561.7,2561.2,3.898]
[1748236935976,8.74826095,2561.7,2561.2,3.898]
[1748236937154,8.74826095,2561.7,2561.3,4.041]
[1748236937355,8.74826095,2561.7,2561.4,3.897]
[1748236937772,11.76663714,2561.7,2561.4,3.897]
[1748236939792,11.40352667,2561.7,2561.4,3.897]
[1748236940285,0.38515048,2561.7,2561.4,3.897]
[1748236940453,0.38515048,2561.7,2561.5,0.814]
[1748236940645,0.36311047,2561.9,2561.6,3.897]
[1748236940844,8.36311047,2562.1,2561.6,3.897]
[1748236941039,8.743894,2562.1,2561.6,3.897]
[1748236943439,8.743894,2562.1,2561.7,4.041]
[1748236943640,2.18322702,2562.0,2561.7,4.041]
[1748236945896,8.743894,2562.1,2561.7,4.041]
[1748236948099,8.743894,2562.1,2561.8,4.041]
[1748236948404,3.01837619,2562.0,2561.8,7.938]
[1748236949669,0.7884,2561.9,2561.6,4.041]
[1748236949896,0.7884,2561.9,2561.7,3.897]
[1748236950127,8.0,2561.7,2561.6,4.041]
[1748236950434,8.0,2561.7,2561.6,7.938]
[1748236958545,8.36311047,2561.7,2561.6,7.938]
[1748236961846,0.36311047,2561.7,2561.6,8.7136]
[1748236962167,0.46709325,2562.4,2561.8,0.7756]
[1748236962347,0.46709325,2562.4,2562.0,0.7518]
[1748236962549,0.46709325,2562.4,2562.2,0.7518]
[1748236962875,0.46709325,2562.4,2562.3,9.28482264]
[1748236963071,0.46709325,2562.4,2562.3,9.2458]
[1748236963269,0.3278701,2562.5,2562.4,1.3077]
[1748236976442,0.3278701,2562.5,2562.4,5.2027]
[1748236978771,0.3278701,2562.5,2562.4,13.6157]
[1748236980741,0.3278701,2562.5,2562.4,9.7207]
[1748236980989,0.3278701,2562.5,2562.4,17.6607]
[1748236982986,0.3278701,2562.5,2562.4,9.7207]
[1748236983187,0.3278701,2562.5,2562.4,17.6607]
[1748236983687,0.3278701,2562.5,2562.4,26.13726892]
[1748236983994,0.87830405,2562.9,2562.6,1.3487]
[1748236984194,0.87830405,2562.9,2562.6,1.82526892]
[1748236985890,0.87830405,2562.9,2562.6,1.3487]
[1748236987998,0.87830405,2562.9,2562.6,9.2867]
[1748236988161,0.87830405,2562.9,2562.6,1.3487]
[1748236988362,0.87830405,2562.9,2562.6,9.2867]
[1748236989189,0.87830405,2562.9,2562.6,15.4367]
[1748236991156,0.87830405,2562.9,2562.6,16.06043688]
[1748236992383,0.87830405,2562.9,2562.6,15.4367]
[1748236993498,0.87830405,2562.9,2562.6,6.9487]
[1748236993699,0.87830405,2562.9,2562.4,9.208]
[1748236994006,0.87830405,2562.9,2562.6,8.524]
[1748236994212,0.87830405,2562.9,2562.4,9.208]
[1748236994424,0.87830405,2562.9,2562.6,7.974]
[1748236998417,0.87830405,2562.9,2562.6,8.524]
[1748236998715,0.87830405,2562.9,2562.6,17.77636892]
[1748236999715,0.87830405,2562.9,2562.6,18.39682502]
[1748237000381,0.87830405,2562.9,2562.6,17.9202561]
[1748237002490,0.87830405,2562.9,2562.6,17.2998]
[1748237004018,0.87830405,2562.9,2562.6,23.4498]
[1748237004721,0.87830405,2562.9,2562.6,24.07030401]
[1748237005684,0.87830405,2562.9,2562.6,23.4498]
[1748237007321,0.87830405,2562.9,2562.6,24.39233116]
[1748237010820,0.87830405,2562.9,2562.6,26.36489568]
[1748237015323,0.87830405,2562.9,2562.6,24.87036452]
[1748237015893,0.87830405,2562.9,2562.6,25.42036452]
[1748237017525,0.87830405,2562.9,2562.6,17.44836452]
[1748237017737,0.87830405,2562.9,2562.6,25.42036452]
[1748237018332,0.87830405,2562.9,2562.6,23.4478]
[1748237023940,0.87830405,2562.9,2562.6,22.668]
[1748237024700,0.87830405,2562.9,2562.6,14.7]
[1748237024903,0.87830405,2562.9,2562.6,22.668]
[1748237029148,0.87830405,2562.9,2562.6,31.078]
[1748237030627,0.87830405,2562.9,2562.6,32.82483116]
[1748237032183,0.87830405,2562.9,2562.6,32.34826224]
[1748237032828,0.87830405,2562.9,2562.6,24.38026224]
[1748237033029,0.87830405,2562.9,2562.6,32.34826224]
[1748237036072,0.87830405,2562.9,2562.6,24.38026224]
[1748237036253,0.87830405,2562.9,2562.6,32.34826224]
[1748237037180,0.87830405,2562.9,2562.6,31.54396224]
[1748237037782,0.87830405,2562.9,2562.6,23.57596224]
[1748237037979,0.87830405,2562.9,2562.6,31.54396224]
[1748237040482,0.87830405,2562.9,2562.6,23.57596224]
[1748237040638,0.87830405,2562.9,2562.6,31.54396224]
[1748237042083,0.87830405,2562.9,2562.6,27.65096224]
[1748237042291,0.87830405,2562.9,2562.6,31.54396224]
[1748237045798,0.87830405,2562.9,2562.6,23.57596224]
[1748237045984,0.87830405,2562.9,2562.6,31.54396224]
[1748237049197,0.87830405,2562.9,2562.6,23.57596224]
[1748237049499,0.87830405,2562.9,2562.6,31.54296224]
[1748237053404,0.87830405,2562.9,2562.6,23.57596224]
[1748237054027,0.87830405,2562.9,2562.6,31.51996224]
[1748237054232,0.87830405,2562.9,2562.6,23.57596224]
[1748237054516,0.87830405,2562.9,2562.6,31.51996224]
[1748237061542,0.87830405,2562.9,2562.6,8.41]
[1748237061737,1.52353254,2562.7,2562.6,16.354]
[1748237062337,0.70863254,2562.7,2562.6,24.904]
[1748237062645,0.70863254,2562.7,2562.6,25.36996224]
[1748237065744,0.70863254,2562.7,2562.6,31.51996224]
[1748237067153,0.70863254,2562.7,2562.6,31.054]
[1748237067651,0.70863254,2562.7,2562.6,33.01982797]
[1748237069740,0.70863254,2562.7,2562.6,25.9622947]
[1748237072727,0.70863254,2562.7,2562.6,25.48579021]
[1748237072945,0.70863254,2562.7,2562.6,25.46479021]
[1748237085678,0.70863254,2562.7,2562.6,25.9412947]
[1748237086468,0.70863254,2562.7,2562.6,29.09782797]
[1748237086667,0.70863254,2562.7,2562.6,32.99082797]
[1748237088696,0.70863254,2562.7,2562.6,33.46733246]
[1748237089395,0.70863254,2562.7,2562.6,33.9332947]
[1748237090900,0.70863254,2562.7,2562.6,31.96746673]
[1748237094278,0.87830405,2562.9,2562.7,1.3026]
[1748237094473,0.87830405,2562.9,2562.7,2.24506673]
[1748237094676,0.72045796,2563.1,2562.9,1.3026]
[1748237094880,0.91764706,2563.3,2563.1,1.3026]
[1748237095181,0.91764706,2563.3,2563.2,11.05896224]
[1748237095909,0.91764706,2563.3,2563.2,19.45101072]
[1748237096110,0.31994754,2563.3,2563.2,20.69411521]
[1748237097277,0.31994754,2563.3,2563.2,20.21761072]
[1748237098825,0.01306658,2563.3,2563.2,20.21761072]
[1748237099006,0.01306658,2563.3,2563.2,20.69411521]
[1748237103963,0.01306658,2563.3,2563.2,20.21761072]
[1748237104261,0.01306658,2563.3,2563.2,23.79264848]
[1748237107221,0.98731856,2563.5,2563.3,0.55]
[1748237107427,0.98731856,2563.5,2563.4,1.3121]
[1748237108324,1.19633308,2564.0,2563.5,0.55]
[1748237109126,1.19633308,2564.0,2563.6,8.484]
[1748237109865,1.19633308,2564.0,2563.6,8.68253884]
[1748237112090,1.19633308,2564.0,2563.6,16.68253884]
[1748237112575,1.19633308,2564.0,2563.6,16.484]
[1748237112772,1.19633308,2564.0,2563.6,16.67397411]
[1748237112978,1.19633308,2564.0,2563.6,18.43484084]
[1748237116388,1.06934198,2563.9,2563.7,1.49246673]
[1748237117299,1.06934198,2563.9,2563.8,1.3499]
[1748237119517,1.06934198,2563.9,2563.8,1.81586224]
[1748237119880,1.06934198,2563.9,2563.8,10.29236673]
[1748237120219,1.06934198,2563.9,2563.8,2.29236673]
[1748237121416,0.32546644,2564.2,2564.1,0.55]
[1748237121593,0.32546644,2564.2,2564.1,12.441]
[1748237122584,0.32546644,2564.2,2564.1,18.591]
[1748237126510,0.32546644,2564.2,2564.1,14.15]
[1748237126713,0.32546644,2564.2,2564.1,22.102]
[1748237127124,0.32546644,2564.2,2564.1,22.652]
[1748237130312,0.32546644,2564.2,2564.1,14.7]
[1748237130516,0.32546644,2564.2,2564.1,22.651]
[1748237130760,0.32546644,2564.2,2564.1,23.12750449]
[1748237132360,0.32546644,2564.2,2564.1,23.59346673]
[1748237134044,0.32546644,2564.2,2564.1,15.64246673]
[1748237134386,0.32546644,2564.2,2564.1,23.59346673]
[1748237134572,0.32546644,2564.2,2564.1,24.35446673]
[1748237135070,0.32546644,2564.2,2564.1,23.88850449]
[1748237135978,0.32546644,2564.2,2564.1,25.13597825]
[1748237136353,0.1,2564.9,2564.4,1.3467]
[1748237136680,0.1,2564.9,2564.5,12.845]
[1748237137053,0.1,2564.9,2564.5,20.845]
[1748237138068,0.1,2564.9,2564.5,21.24342078]
[1748237139497,0.1,2564.9,2564.5,27.39342078]
[1748237139894,0.1,2564.9,2564.5,23.50242078]
[1748237140094,0.7629,2564.7,2564.5,31.45242078]
[1748237140460,0.7629,2564.7,2564.5,23.50242078]
[1748237140660,0.7629,2564.7,2564.5,31.45242078]
[1748237141368,0.9288,2564.9,2564.5,23.50242078]
[1748237141567,0.9288,2564.9,2564.5,31.45242078]
[1748237141963,0.9288,2564.9,2564.5,23.50242078]
[1748237142310,2.21434759,2564.6,2564.5,30.504]
[1748237142966,2.21434759,2564.6,2564.5,31.054]
[1748237143160,2.21434759,2564.6,2564.5,26.614]
[1748237143365,2.21434759,2564.6,2564.5,30.504]
[1748237143602,2.21434759,2564.6,2564.5,22.554]
[1748237143802,2.21434759,2564.6,2564.5,30.504]
[1748237144005,2.21434759,2564.6,2564.5,31.054]
[1748237145205,2.21434759,2564.6,2564.5,31.004]
[1748237149041,2.21434759,2564.6,2564.5,23.054]
[1748237149319,2.21434759,2564.6,2564.5,31.012]
[1748237149518,2.21434759,2564.6,2564.5,23.054]
[1748237149682,2.21434759,2564.6,2564.5,31.012]
[1748237154427,2.21434759,2564.6,2564.5,23.054]
[1748237154727,2.21434759,2564.6,2564.5,31.012]
[1748237154885,2.21434759,2564.6,2564.5,14.7]
[1748237155084,2.21434759,2564.6,2564.5,31.062]
[1748237155945,2.21434759,2564.6,2564.5,31.68107058]
[1748237160150,2.21434759,2564.6,2564.5,25.53107058]
[1748237165248,2.21434759,2564.6,2564.5,17.53207058]
[1748237165612,1.40534759,2564.6,2564.5,17.53207058]
[1748237166020,1.40534759,2564.6,2564.5,16.913]
[1748237171849,1.40534759,2564.6,2564.5,23.063]
[1748237174191,1.40534759,2564.6,2564.5,19.172]
[1748237174492,1.40534759,2564.6,2564.5,23.063]
[1748237175997,1.40534759,2564.6,2564.5,23.037]
[1748237183519,1.40534759,2564.6,2564.5,15.104]
[1748237183713,1.40534759,2564.6,2564.5,16.887]
[1748237188702,1.40534759,2564.6,2564.5,18.59153332]
[1748237188913,1.40534759,2564.6,2564.5,26.59153332]
[1748237190420,1.40534759,2564.6,2564.5,28.54783481]
[1748237190919,1.40534759,2564.6,2564.5,28.54683481]
[1748237191517,1.40534759,2564.6,2564.5,20.61483481]
[1748237191715,1.40534759,2564.6,2564.5,28.54683481]
[1748237191923,1.40534759,2564.6,2564.5,18.91030149]
[1748237192329,1.40534759,2564.6,2564.5,26.84230149]
[1748237194398,1.40534759,2564.6,2564.5,18.91030149]